[Event "*** SCC Grand Prix: Titled Tuesday Blitz"]
[Site "Chess.com"]
[Date "2020.08.04"]
[Round "5"]
[White "MF1966Idrisov"]
[Black "RaunakSadhwani2005"]
[Result "0-1"]
[WhiteElo "2345"]
[BlackElo "2945"]
[TimeControl "180+1"]
[EndTime "14:41:40 PDT"]
[Termination "RaunakSadhwani2005 won by resignation"]

1. Nf3 {[%clk 0:03:00.3]} 1... d5 {[%clk 0:02:59.1]} 2. b3 {[%clk 0:03:00.3]}
2... f6 {[%clk 0:02:58]} 3. d4 {[%clk 0:02:59.6]} 3... e6 {[%clk 0:02:58.2]} 4.
Bb2 {[%clk 0:02:59.8]} 4... Bd6 {[%clk 0:02:57.6]} 5. g3 {[%clk 0:02:59.9]} 5...
Ne7 {[%clk 0:02:55.9]} 6. Bg2 {[%clk 0:02:59.5]} 6... O-O {[%clk 0:02:55.6]} 7.
O-O {[%clk 0:02:59.6]} 7... c6 {[%clk 0:02:54.3]} 8. c4 {[%clk 0:02:59.4]} 8...
Nd7 {[%clk 0:02:54.2]} 9. Nc3 {[%clk 0:02:59]} 9... f5 {[%clk 0:02:52.3]} 10.
Bc1 {[%clk 0:02:52.5]} 10... Nf6 {[%clk 0:02:49.9]} 11. Bf4 {[%clk 0:02:51.5]}
11... Ng6 {[%clk 0:02:49.4]} 12. Bxd6 {[%clk 0:02:48.3]} 12... Qxd6 {[%clk
0:02:50.3]} 13. e3 {[%clk 0:02:48.4]} 13... Bd7 {[%clk 0:02:50.5]} 14. a3 {[%clk
0:02:46.8]} 14... Rae8 {[%clk 0:02:50.3]} 15. Ne2 {[%clk 0:02:44.6]} 15... Ne4
{[%clk 0:02:50]} 16. Qc2 {[%clk 0:02:43.5]} 16... Rd8 {[%clk 0:02:14.7]} 17. Nf4
{[%clk 0:02:42.5]} 17... Be8 {[%clk 0:02:13.8]} 18. b4 {[%clk 0:02:29.4]} 18...
Qe7 {[%clk 0:02:10.5]} 19. Rad1 {[%clk 0:02:22.1]} 19... Nd6 {[%clk 0:02:06.2]}
20. Nxg6 {[%clk 0:02:20]} 20... Bxg6 {[%clk 0:02:05.8]} 21. Ne5 {[%clk
0:02:20.2]} 21... dxc4 {[%clk 0:02:02.7]} 22. Nxc4 {[%clk 0:02:12.1]} 22... f4
{[%clk 0:02:02.8]} 23. Qb3 {[%clk 0:02:09.6]} 23... f3 {[%clk 0:02:00.8]} 24.
Bh3 {[%clk 0:02:08.5]} 24... Nxc4 {[%clk 0:02:00.3]} 25. Qxc4 {[%clk 0:02:07.6]}
25... Rf6 {[%clk 0:01:46.5]} 26. Rfe1 {[%clk 0:02:02.4]} 26... Be4 {[%clk
0:01:45.9]} 27. Bf1 {[%clk 0:01:58.9]} 27... Rh6 {[%clk 0:01:44.9]} 28. Qc5
{[%clk 0:01:46.1]} 28... Qf7 {[%clk 0:01:31.4]} 29. Qe5 {[%clk 0:01:44.5]} 29...
Bd5 {[%clk 0:01:26.2]} 30. e4 {[%clk 0:01:37.4]} 30... Rh5 {[%clk 0:01:21.6]}
31. Qf4 {[%clk 0:01:31.2]} 31... Qxf4 {[%clk 0:01:21.7]} 32. gxf4 {[%clk
0:01:31]} 32... Bb3 {[%clk 0:01:22.6]} 33. Rd3 {[%clk 0:01:28.2]} 33... Bc4
{[%clk 0:01:22.8]} 34. Rxf3 {[%clk 0:01:26]} 34... Bxf1 {[%clk 0:01:23.3]} 35.
Rxf1 {[%clk 0:01:25.6]} 35... Rxd4 {[%clk 0:01:23.9]} 36. Re1 {[%clk 0:01:23]}
36... Kf7 {[%clk 0:01:21.8]} 37. Ree3 {[%clk 0:01:20]} 37... Rb5 {[%clk
0:01:17.2]} 38. e5 {[%clk 0:01:17]} 38... a5 {[%clk 0:01:15.7]} 39. bxa5 {[%clk
0:01:14.9]} 39... Rxa5 {[%clk 0:01:16.6]} 40. Kg2 {[%clk 0:01:09.5]} 40... g6
{[%clk 0:01:14.8]} 41. h4 {[%clk 0:01:07.8]} 41... Rad5 {[%clk 0:01:11.4]} 42.
Rb3 {[%clk 0:01:06.8]} 42... b5 {[%clk 0:01:11.4]} 43. Rbc3 {[%clk 0:01:00.7]}
43... c5 {[%clk 0:01:10.4]} 44. Rb3 {[%clk 0:01:00.6]} 44... c4 {[%clk
0:01:10.5]} 45. Rb4 {[%clk 0:00:56.4]} 45... Rd3 {[%clk 0:01:09.3]} 46. a4
{[%clk 0:00:56.2]} 46... bxa4 {[%clk 0:01:05]} 47. Rxc4 {[%clk 0:00:52.1]} 47...
Rxf3 {[%clk 0:01:04.9]} 48. Kxf3 {[%clk 0:00:51.5]} 48... Ra5 {[%clk 0:01:05.5]}
49. Rc7+ {[%clk 0:00:46.4]} 49... Kf8 {[%clk 0:01:04.7]} 50. Rc2 {[%clk
0:00:39.6]} 50... a3 {[%clk 0:01:04.6]} 51. Ra2 {[%clk 0:00:39.7]} 51... Kg7
{[%clk 0:01:05.2]} 52. Kg4 {[%clk 0:00:39.7]} 52... Kh6 {[%clk 0:01:05.7]} 53.
Kh3 {[%clk 0:00:32.6]} 53... Ra4 {[%clk 0:01:05.1]} 54. Kg3 {[%clk 0:00:32.3]}
54... Kh5 {[%clk 0:01:00.6]} 55. f3 {[%clk 0:00:31.8]} 55... Kh6 {[%clk
0:01:00.9]} 56. Kh3 {[%clk 0:00:31.5]} 56... Kg7 {[%clk 0:01:00]} 57. Kg4 {[%clk
0:00:31.6]} 57... h5+ {[%clk 0:00:56.2]} 58. Kg3 {[%clk 0:00:31]} 58... Kf7
{[%clk 0:00:56.6]} 59. Kf2 {[%clk 0:00:28.4]} 59... Ke7 {[%clk 0:00:57]} 60. Ke3
{[%clk 0:00:28.7]} 60... Kd7 {[%clk 0:00:57.5]} 61. Ke2 {[%clk 0:00:28.9]} 61...
Kc6 {[%clk 0:00:57.8]} 62. Kd2 {[%clk 0:00:29.4]} 62... Kd5 {[%clk 0:00:56.7]}
63. Kc2 {[%clk 0:00:24.5]} 63... Kc4 {[%clk 0:00:53.9]} 64. Kb1 {[%clk
0:00:22.1]} 64... Kb3 {[%clk 0:00:51]} 65. Rg2 {[%clk 0:00:20.5]} 65... Rd4
{[%clk 0:00:48.7]} 66. Rg1 {[%clk 0:00:18.4]} 66... a2+ {[%clk 0:00:44.1]} 67.
Ka1 {[%clk 0:00:18.5]} 67... Rd2 {[%clk 0:00:44.6]} 68. Re1 {[%clk 0:00:17.4]}
68... Rd3 {[%clk 0:00:37.7]} 69. Rf1 {[%clk 0:00:16.6]} 69... Rc3 {[%clk
0:00:38]} 70. Rg1 {[%clk 0:00:10.9]} 70... Rxf3 {[%clk 0:00:37.2]} 71. Re1
{[%clk 0:00:10.4]} 71... Rxf4 {[%clk 0:00:35.4]} 72. Re3+ {[%clk 0:00:10.5]}
72... Kc4 {[%clk 0:00:35.6]} 73. Kxa2 {[%clk 0:00:10.6]} 73... Rxh4 {[%clk
0:00:36.1]} 74. Kb2 {[%clk 0:00:09.7]} 74... Kd5 {[%clk 0:00:35.8]} 75. Rg3
{[%clk 0:00:08.9]} 75... Rg4 {[%clk 0:00:36]} 0-1

[Event "*** SCC Grand Prix: Titled Tuesday Blitz"]
[Site "Chess.com"]
[Date "2020.08.04"]
[Round "5"]
[White "DaggiGretarsson"]
[Black "MichailovM"]
[Result "1-0"]
[WhiteElo "2616"]
[BlackElo "2423"]
[TimeControl "180+1"]
[EndTime "14:41:43 PDT"]
[Termination "DaggiGretarsson won on time"]

1. d4 {[%clk 0:02:59.8]} 1... Nf6 {[%clk 0:02:58.9]} 2. c4 {[%clk 0:02:59.5]}
2... g6 {[%clk 0:02:58.1]} 3. Nc3 {[%clk 0:02:59.1]} 3... Bg7 {[%clk 0:02:59]}
4. e4 {[%clk 0:02:58.6]} 4... d6 {[%clk 0:02:59.6]} 5. f4 {[%clk 0:02:58.8]}
5... O-O {[%clk 0:02:59.7]} 6. Nf3 {[%clk 0:02:58.8]} 6... Na6 {[%clk
0:03:00.4]} 7. Bd3 {[%clk 0:02:57.7]} 7... e5 {[%clk 0:03:00.6]} 8. fxe5 {[%clk
0:02:57.3]} 8... dxe5 {[%clk 0:03:01.5]} 9. d5 {[%clk 0:02:57.6]} 9... c6 {[%clk
0:03:01.4]} 10. O-O {[%clk 0:02:57]} 10... cxd5 {[%clk 0:03:01.8]} 11. cxd5
{[%clk 0:02:56.2]} 11... Ne8 {[%clk 0:03:02.3]} 12. Kh1 {[%clk 0:02:47.3]} 12...
Nd6 {[%clk 0:03:02.4]} 13. Bg5 {[%clk 0:02:46.3]} 13... f6 {[%clk 0:03:02]} 14.
Be3 {[%clk 0:02:46]} 14... Bd7 {[%clk 0:02:59.3]} 15. Qb3 {[%clk 0:02:38.4]}
15... Qa5 {[%clk 0:02:50.6]} 16. Rfc1 {[%clk 0:02:02]} 16... Rfc8 {[%clk
0:02:41.9]} 17. Qd1 {[%clk 0:01:57.5]} 17... Nc5 {[%clk 0:02:31.2]} 18. Bxc5
{[%clk 0:01:54.8]} 18... Rxc5 {[%clk 0:02:27.2]} 19. a3 {[%clk 0:01:54.2]} 19...
Qb6 {[%clk 0:02:11.3]} 20. b4 {[%clk 0:01:52.9]} 20... Rc7 {[%clk 0:02:07.1]}
21. Qg1 {[%clk 0:01:32.4]} 21... Rac8 {[%clk 0:02:00.9]} 22. Qxb6 {[%clk
0:01:30.6]} 22... axb6 {[%clk 0:02:01.8]} 23. Ne2 {[%clk 0:01:29.1]} 23... Bh6
{[%clk 0:02:01.8]} 24. Rxc7 {[%clk 0:01:26.9]} 24... Rxc7 {[%clk 0:02:02.7]} 25.
a4 {[%clk 0:01:20.9]} 25... Bf8 {[%clk 0:01:41.6]} 26. a5 {[%clk 0:00:58]} 26...
bxa5 {[%clk 0:01:35.4]} 27. bxa5 {[%clk 0:00:56.6]} 27... Nf7 {[%clk 0:01:25]}
28. h3 {[%clk 0:00:46]} 28... f5 {[%clk 0:01:16]} 29. Nd2 {[%clk 0:00:41.6]}
29... Bb4 {[%clk 0:01:11.7]} 30. Nc4 {[%clk 0:00:37.7]} 30... fxe4 {[%clk
0:01:09.6]} 31. Nb2 {[%clk 0:00:26]} 31... exd3 {[%clk 0:01:08]} 32. Nxd3 {[%clk
0:00:26.2]} 32... Bd6 {[%clk 0:01:08.1]} 33. Ng3 {[%clk 0:00:25.8]} 33... Bb5
{[%clk 0:01:03.6]} 34. Nf2 {[%clk 0:00:24.6]} 34... Bc4 {[%clk 0:00:57.8]} 35.
Nge4 {[%clk 0:00:23.9]} 35... Kg7 {[%clk 0:00:52.7]} 36. Rd1 {[%clk 0:00:18.8]}
36... Ba6 {[%clk 0:00:50.2]} 37. Ng4 {[%clk 0:00:17.6]} 37... Be2 {[%clk
0:00:42.7]} 38. Ra1 {[%clk 0:00:14.3]} 38... Bxg4 {[%clk 0:00:33.3]} 39. hxg4
{[%clk 0:00:14]} 39... Rc4 {[%clk 0:00:33.6]} 40. Nd2 {[%clk 0:00:12.6]} 40...
Rd4 {[%clk 0:00:33.1]} 41. Ra2 {[%clk 0:00:09.1]} 41... Rxd5 {[%clk 0:00:33.3]}
42. Ne4 {[%clk 0:00:09.2]} 42... Be7 {[%clk 0:00:29.2]} 43. g3 {[%clk
0:00:08.3]} 43... Rd4 {[%clk 0:00:29.4]} 44. Re2 {[%clk 0:00:07.6]} 44... Ra4
{[%clk 0:00:26.8]} 45. Kg2 {[%clk 0:00:06.1]} 45... Rxa5 {[%clk 0:00:25.2]} 46.
Rc2 {[%clk 0:00:06.4]} 46... Ra4 {[%clk 0:00:24]} 47. Kf3 {[%clk 0:00:05.9]}
47... Ra3+ {[%clk 0:00:24]} 48. Kg2 {[%clk 0:00:05.8]} 48... Ng5 {[%clk
0:00:19.4]} 49. Nd2 {[%clk 0:00:04.8]} 49... Bd6 {[%clk 0:00:16.3]} 50. Rb2
{[%clk 0:00:03.8]} 50... e4 {[%clk 0:00:12]} 51. Rxb7+ {[%clk 0:00:03.7]} 51...
Kh6 {[%clk 0:00:12.5]} 52. Nc4 {[%clk 0:00:03.6]} 52... Rxg3+ {[%clk 0:00:11.9]}
53. Kf2 {[%clk 0:00:03.8]} 53... Rf3+ {[%clk 0:00:11.1]} 54. Ke2 {[%clk
0:00:04]} 54... Bf4 {[%clk 0:00:10.8]} 55. Nb6 {[%clk 0:00:03.4]} 55... Rd3
{[%clk 0:00:09.6]} 56. Nd7 {[%clk 0:00:02.9]} 56... Nf3 {[%clk 0:00:07.4]} 57.
Nf6 {[%clk 0:00:02.7]} 57... Nd4+ {[%clk 0:00:06.7]} 58. Kf1 {[%clk 0:00:03]}
58... Rd1+ {[%clk 0:00:02.7]} 59. Kg2 {[%clk 0:00:03.1]} 59... e3 {[%clk
0:00:03.1]} 60. Nxh7 {[%clk 0:00:02.3]} 60... e2 {[%clk 0:00:02.3]} 61. Nf8
{[%clk 0:00:02.5]} 1-0

[Event "*** SCC Grand Prix: Titled Tuesday Blitz"]
[Site "Chess.com"]
[Date "2020.08.04"]
[Round "5"]
[White "ChessSwole"]
[Black "Gareth-Bale11"]
[Result "1-0"]
[WhiteElo "2397"]
[BlackElo "2756"]
[TimeControl "180+1"]
[EndTime "14:41:44 PDT"]
[Termination "ChessSwole won by resignation"]

1. d4 {[%clk 0:03:00.9]} 1... g6 {[%clk 0:03:00.9]} 2. e4 {[%clk 0:03:00.7]}
2... Bg7 {[%clk 0:03:01]} 3. Nf3 {[%clk 0:02:59]} 3... d6 {[%clk 0:03:00.5]} 4.
Nc3 {[%clk 0:02:59.1]} 4... a6 {[%clk 0:03:00.3]} 5. a4 {[%clk 0:02:59.1]} 5...
Nd7 {[%clk 0:02:59.1]} 6. Be2 {[%clk 0:02:58.7]} 6... e5 {[%clk 0:02:59.2]} 7.
O-O {[%clk 0:02:58.6]} 7... Ne7 {[%clk 0:02:55.5]} 8. h3 {[%clk 0:02:57.6]} 8...
O-O {[%clk 0:02:55.5]} 9. Bg5 {[%clk 0:02:56.5]} 9... h6 {[%clk 0:02:55.1]} 10.
Be3 {[%clk 0:02:56.1]} 10... Nc6 {[%clk 0:02:53]} 11. Qd2 {[%clk 0:02:54.6]}
11... Kh7 {[%clk 0:02:52.4]} 12. Rad1 {[%clk 0:02:51.7]} 12... f5 {[%clk
0:02:34.9]} 13. dxe5 {[%clk 0:02:45.8]} 13... dxe5 {[%clk 0:02:26.9]} 14. exf5
{[%clk 0:02:13.3]} 14... gxf5 {[%clk 0:02:27.8]} 15. Qe1 {[%clk 0:01:47.1]}
15... Ne7 {[%clk 0:01:58.1]} 16. Bc4 {[%clk 0:01:43.4]} 16... Qe8 {[%clk
0:01:56]} 17. Nd5 {[%clk 0:01:30.4]} 17... c6 {[%clk 0:01:50.2]} 18. Nc7 {[%clk
0:01:29.6]} 18... Qh5 {[%clk 0:01:32.8]} 19. Nxa8 {[%clk 0:01:28.8]} 19... e4
{[%clk 0:01:27.7]} 20. Nd4 {[%clk 0:01:25]} 20... Ne5 {[%clk 0:01:27.6]} 21. Be2
{[%clk 0:01:25.1]} 21... Qf7 {[%clk 0:01:24.6]} 22. f4 {[%clk 0:01:25.1]} 22...
exf3 {[%clk 0:01:22.9]} 23. Nxf3 {[%clk 0:01:25]} 23... N7g6 {[%clk 0:01:23.5]}
24. Nb6 {[%clk 0:01:22.6]} 24... Be6 {[%clk 0:01:23.4]} 25. Bd4 {[%clk
0:01:13.9]} 25... Re8 {[%clk 0:01:16]} 26. Nxe5 {[%clk 0:01:13.7]} 26... Nxe5
{[%clk 0:01:16.9]} 27. Qc3 {[%clk 0:01:11]} 27... Qc7 {[%clk 0:01:15.3]} 28. a5
{[%clk 0:01:04.6]} 28... Rg8 {[%clk 0:01:08.7]} 29. Bf3 {[%clk 0:00:40]} 29...
Ng6 {[%clk 0:00:47.3]} 30. Bxg7 {[%clk 0:00:37.6]} 30... Rxg7 {[%clk 0:00:48.2]}
31. Rde1 {[%clk 0:00:33.2]} 31... Bg8 {[%clk 0:00:41.7]} 32. Qd3 {[%clk
0:00:22.7]} 32... Nh4 {[%clk 0:00:38.7]} 33. Kh1 {[%clk 0:00:17.6]} 33... Qg3
{[%clk 0:00:34.8]} 34. Re2 {[%clk 0:00:13.8]} 34... Bf7 {[%clk 0:00:18.8]} 35.
Qe3 {[%clk 0:00:13.4]} 35... h5 {[%clk 0:00:07.1]} 36. Qf2 {[%clk 0:00:13.3]}
36... Qg5 {[%clk 0:00:06.9]} 37. Nd7 {[%clk 0:00:11.1]} 37... Bc4 {[%clk
0:00:07.1]} 38. Rd1 {[%clk 0:00:08.4]} 38... Bxe2 {[%clk 0:00:06.4]} 39. Qxe2
{[%clk 0:00:09.3]} 39... Ng6 {[%clk 0:00:06.6]} 40. Qf2 {[%clk 0:00:06.5]} 40...
h4 {[%clk 0:00:06.5]} 41. Nc5 {[%clk 0:00:06.1]} 41... Nf4 {[%clk 0:00:06.5]}
42. Rd7 {[%clk 0:00:04.5]} 42... Rxd7 {[%clk 0:00:05.5]} 43. Nxd7 {[%clk
0:00:05.4]} 43... Ng6 {[%clk 0:00:05.7]} 44. Nc5 {[%clk 0:00:03.9]} 44... Qc1+
{[%clk 0:00:05.6]} 45. Kh2 {[%clk 0:00:04]} 45... Qf4+ {[%clk 0:00:05.8]} 46.
Kg1 {[%clk 0:00:04.4]} 46... Qc1+ {[%clk 0:00:05.9]} 47. Kh2 {[%clk 0:00:03.9]}
47... Qf4+ {[%clk 0:00:06.1]} 48. Kh1 {[%clk 0:00:04.6]} 48... Qc1+ {[%clk
0:00:06]} 49. Qg1 {[%clk 0:00:05.2]} 49... Qxb2 {[%clk 0:00:06.2]} 50. Ne6
{[%clk 0:00:04.4]} 50... Qxc2 {[%clk 0:00:05.1]} 51. Ng5+ {[%clk 0:00:04.9]}
51... Kh6 {[%clk 0:00:04.7]} 52. Nf7+ {[%clk 0:00:05.3]} 52... Kg7 {[%clk
0:00:04.5]} 53. Nd8 {[%clk 0:00:05.4]} 53... Qb2 {[%clk 0:00:03.4]} 54. Qb6
{[%clk 0:00:04.8]} 54... Qc1+ {[%clk 0:00:01.8]} 55. Qg1 {[%clk 0:00:04.9]}
55... Qb2 {[%clk 0:00:01.8]} 56. Ne6+ {[%clk 0:00:05.2]} 56... Kf6 {[%clk
0:00:01.7]} 57. Nc5 {[%clk 0:00:04.8]} 57... Qb4 {[%clk 0:00:01.2]} 58. Nd7+
{[%clk 0:00:04.5]} 58... Ke7 {[%clk 0:00:01.3]} 59. Nb6 {[%clk 0:00:03.9]} 59...
Kd6 {[%clk 0:00:01.7]} 60. Nc8+ {[%clk 0:00:04]} 60... Kc7 {[%clk 0:00:01.5]}
61. Na7 {[%clk 0:00:03.5]} 61... Ne5 {[%clk 0:00:02]} 62. Qf2 {[%clk 0:00:02.8]}
62... Nxf3 {[%clk 0:00:02.3]} 63. Qxf3 {[%clk 0:00:03.7]} 63... Qxa5 {[%clk
0:00:02.7]} 64. Qf4+ {[%clk 0:00:04.1]} 64... Kb6 {[%clk 0:00:03]} 65. Nc8+
{[%clk 0:00:04.8]} 65... Kb5 {[%clk 0:00:02.8]} 66. Nd6+ {[%clk 0:00:05.4]}
66... Kc5 {[%clk 0:00:02.3]} 67. Nxb7+ {[%clk 0:00:05.5]} 67... Kb6 {[%clk
0:00:02.9]} 68. Nxa5 {[%clk 0:00:06.4]} 68... Kxa5 {[%clk 0:00:03.8]} 69. Qxf5+
{[%clk 0:00:07]} 1-0

[Event "*** SCC Grand Prix: Titled Tuesday Blitz"]
[Site "Chess.com"]
[Date "2020.08.04"]
[Round "5"]
[White "Zubrrr"]
[Black "mortngabriel"]
[Result "1-0"]
[WhiteElo "2638"]
[BlackElo "2429"]
[TimeControl "180+1"]
[EndTime "14:41:57 PDT"]
[Termination "Zubrrr won by resignation"]

1. c4 {[%clk 0:02:54.8]} 1... Nf6 {[%clk 0:02:44.3]} 2. g3 {[%clk 0:02:55.1]}
2... e5 {[%clk 0:02:43.4]} 3. Bg2 {[%clk 0:02:54.3]} 3... d5 {[%clk 0:02:43.8]}
4. cxd5 {[%clk 0:02:55]} 4... Nxd5 {[%clk 0:02:44.7]} 5. Nc3 {[%clk 0:02:55.4]}
5... Nb6 {[%clk 0:02:44.8]} 6. Nf3 {[%clk 0:02:55.7]} 6... Nc6 {[%clk
0:02:45.3]} 7. O-O {[%clk 0:02:55.8]} 7... Be7 {[%clk 0:02:45.8]} 8. a3 {[%clk
0:02:56]} 8... a5 {[%clk 0:02:44.4]} 9. d3 {[%clk 0:02:55.5]} 9... O-O {[%clk
0:02:43.5]} 10. Be3 {[%clk 0:02:42.7]} 10... Be6 {[%clk 0:02:42.6]} 11. Rc1
{[%clk 0:02:35.6]} 11... Nd5 {[%clk 0:02:35.3]} 12. Nxd5 {[%clk 0:02:16.4]}
12... Bxd5 {[%clk 0:02:36.2]} 13. Qa4 {[%clk 0:02:15.8]} 13... Re8 {[%clk
0:02:18.1]} 14. Rc2 {[%clk 0:02:05.1]} 14... Bf6 {[%clk 0:02:07.9]} 15. Nd2
{[%clk 0:01:55.5]} 15... Bxg2 {[%clk 0:01:41.3]} 16. Kxg2 {[%clk 0:01:56.4]}
16... Nd4 {[%clk 0:01:41.7]} 17. Bxd4 {[%clk 0:01:55.5]} 17... exd4 {[%clk
0:01:42.6]} 18. Nf3 {[%clk 0:01:34.3]} 18... c6 {[%clk 0:01:34.2]} 19. Qb3
{[%clk 0:01:10.1]} 19... Qd7 {[%clk 0:01:29.5]} 20. Re1 {[%clk 0:00:52.2]} 20...
Re7 {[%clk 0:01:25.5]} 21. Nd2 {[%clk 0:00:46.4]} 21... Qe6 {[%clk 0:01:08.8]}
22. Qxe6 {[%clk 0:00:44.3]} 22... Rxe6 {[%clk 0:01:08.9]} 23. Nb3 {[%clk
0:00:18]} 23... b6 {[%clk 0:01:01.6]} 24. Rec1 {[%clk 0:00:15.4]} 24... c5
{[%clk 0:00:59.2]} 25. a4 {[%clk 0:00:14.5]} 25... Rae8 {[%clk 0:00:56.5]} 26.
Kf1 {[%clk 0:00:14.4]} 26... Bd8 {[%clk 0:00:56.3]} 27. Re1 {[%clk 0:00:13.8]}
27... Bc7 {[%clk 0:00:55.7]} 28. Nd2 {[%clk 0:00:13.8]} 28... h5 {[%clk
0:00:54]} 29. Nf3 {[%clk 0:00:12.6]} 29... g6 {[%clk 0:00:51.5]} 30. Nxd4 {[%clk
0:00:11.8]} 30... Rf6 {[%clk 0:00:46]} 31. Nb5 {[%clk 0:00:10.1]} 31... Be5
{[%clk 0:00:45.4]} 32. Kg2 {[%clk 0:00:09.6]} 32... h4 {[%clk 0:00:44.8]} 33. b3
{[%clk 0:00:08]} 33... hxg3 {[%clk 0:00:34.1]} 34. hxg3 {[%clk 0:00:08.9]} 34...
Kg7 {[%clk 0:00:34.6]} 35. e3 {[%clk 0:00:08]} 35... Rd8 {[%clk 0:00:33.9]} 36.
Rd1 {[%clk 0:00:08.3]} 36... Re6 {[%clk 0:00:28.2]} 37. d4 {[%clk 0:00:05.7]}
37... cxd4 {[%clk 0:00:27.6]} 38. exd4 {[%clk 0:00:06.6]} 38... Bb8 {[%clk
0:00:20.4]} 39. d5 {[%clk 0:00:06.7]} 39... Re5 {[%clk 0:00:20.2]} 40. d6 {[%clk
0:00:05]} 40... Rc5 {[%clk 0:00:14.9]} 41. Rxc5 {[%clk 0:00:04.9]} 41... bxc5
{[%clk 0:00:15.3]} 42. Rd5 {[%clk 0:00:04.8]} 42... Kf6 {[%clk 0:00:15]} 43.
Rxc5 {[%clk 0:00:05]} 43... Bxd6 {[%clk 0:00:15.1]} 44. Rc6 {[%clk 0:00:05]}
44... Ke5 {[%clk 0:00:14.6]} 45. Ra6 {[%clk 0:00:02.8]} 45... Bb4 {[%clk
0:00:13.6]} 46. Na7 {[%clk 0:00:03]} 46... Ke4 {[%clk 0:00:08.9]} 47. Nc6 {[%clk
0:00:02.9]} 47... Rd3 {[%clk 0:00:05.7]} 48. Nxa5 {[%clk 0:00:02.8]} 48... Bxa5
{[%clk 0:00:05]} 49. Rxa5 {[%clk 0:00:03.7]} 49... Rxb3 {[%clk 0:00:05.3]} 50.
Ra7 {[%clk 0:00:04]} 50... Ra3 {[%clk 0:00:05.7]} 51. Rxf7 {[%clk 0:00:03.6]}
51... g5 {[%clk 0:00:04.6]} 52. Ra7 {[%clk 0:00:04.1]} 52... g4 {[%clk
0:00:04.3]} 53. Rf7 {[%clk 0:00:03.5]} 53... Ke5 {[%clk 0:00:03.9]} 54. Rf4
{[%clk 0:00:04]} 54... Kd5 {[%clk 0:00:03]} 55. Rxg4 {[%clk 0:00:04.4]} 55...
Ke5 {[%clk 0:00:03.9]} 56. Rf4 {[%clk 0:00:04.7]} 56... Ra2 {[%clk 0:00:03.7]}
57. Kh3 {[%clk 0:00:05]} 57... Ra3 {[%clk 0:00:04.6]} 58. Kg4 {[%clk 0:00:05.3]}
58... Ra2 {[%clk 0:00:05.5]} 59. a5 {[%clk 0:00:05.5]} 59... Ra1 {[%clk
0:00:06.4]} 60. Rf5+ {[%clk 0:00:05.6]} 60... Ke6 {[%clk 0:00:06.2]} 61. Kg5
{[%clk 0:00:06.1]} 61... Rg1 {[%clk 0:00:05.8]} 62. g4 {[%clk 0:00:06.6]} 62...
Rf1 {[%clk 0:00:05.4]} 63. a6 {[%clk 0:00:06.9]} 63... Ra1 {[%clk 0:00:06.3]}
64. Rf6+ {[%clk 0:00:07.2]} 64... Ke7 {[%clk 0:00:06.9]} 65. Kg6 {[%clk
0:00:07.7]} 65... Ra5 {[%clk 0:00:06.2]} 66. g5 {[%clk 0:00:08]} 66... Ra4
{[%clk 0:00:06.1]} 67. a7 {[%clk 0:00:08.2]} 67... Ke8 {[%clk 0:00:06.1]} 68.
Rf7 {[%clk 0:00:07.8]} 68... Ra6+ {[%clk 0:00:05.9]} 69. Kg7 {[%clk 0:00:08.1]}
69... Kd8 {[%clk 0:00:03.8]} 70. a8=Q+ {[%clk 0:00:07.6]} 70... Rxa8 {[%clk
0:00:04.5]} 71. Rf8+ {[%clk 0:00:07.9]} 1-0